bitfinex/quotes_SOLUSD_20220208
["timestamp","ask_amount","ask_price","bid_price","bid_amount"]
[1644351679961,43.61010003,110.86,110.76,13.5404]
[1644351680263,43.61010003,110.86,110.77,2.68115406]
[1644351680662,0.25,110.86,110.77,11.49715406]
[1644351680862,13.5398,110.87,110.77,11.74715406]
[1644351681063,13.5398,110.87,110.78,2.68115406]
[1644351681264,13.5371,110.89,110.78,2.93115406]
[1644351681466,13.5371,110.89,110.78,19.25]
[1644351681667,38.84657439,110.9,110.79,50.32657986]
[1644351681966,38.84657439,110.9,110.8,13.0]
[1644351682165,38.84657439,110.9,110.81,40.78883144]
[1644351682870,13.5349,110.91,110.81,40.78883144]
[1644351683266,13.0,110.95,110.81,55.31967497]
[1644351683466,23.2556,110.97,110.81,61.31967497]
[1644351683467,13.0,110.97,110.81,61.31967497]
[1644351683667,13.0,110.97,110.81,60.03883144]
[1644351683867,13.53,110.95,110.82,1.28084353]
[1644351684072,53.66655517,110.95,110.83,55.66385408]
[1644351684267,53.66655517,110.95,110.83,65.96385408]
[1644351684467,53.66655517,110.95,110.83,73.24469761]
[1644351684770,53.66655517,110.95,110.83,71.96385408]
[1644351685371,53.66655517,110.95,110.83,73.24469761]
[1644351685793,13.5276,110.97,110.85,13.5278]
[1644351686092,13.5276,110.97,110.86,13.0]
[1644351686292,13.7776,110.97,110.86,24.594]
[1644351686494,13.7776,110.97,110.86,30.594]
[1644351686894,45.6744424,110.96,110.87,45.76825118]
[1644351687094,45.6744424,110.96,110.87,59.29515118]
[1644351687095,59.2024424,110.96,110.87,59.29515118]
[1644351687496,59.2024424,110.96,110.87,45.76825118]
[1644351687793,59.2024424,110.96,110.85,13.0]
[1644351687794,77.24466689,110.96,110.85,13.0]
[1644351687994,90.24466689,110.96,110.83,13.0]
[1644351688594,90.24466689,110.96,110.84,45.79110813]
[1644351689497,74.31019789,110.96,110.84,53.86710813]
[1644351689695,74.56019789,110.96,110.84,53.86710813]
[1644351689898,74.31019789,110.96,110.84,67.39810813]
[1644351690096,61.31019789,110.96,110.84,67.64810813]
[1644351690298,61.31019789,110.96,110.84,80.64810813]
[1644351690695,61.31019789,110.96,110.85,0.024]
[1644351691397,61.31019789,110.96,110.86,42.64099713]
[1644351691598,61.31019789,110.96,110.86,42.66499713]
[1644351691799,59.2024424,110.96,110.86,42.66499713]
[1644351692199,59.2024424,110.96,110.86,42.91499713]
[1644351692402,59.2024424,110.96,110.86,42.66499713]
[1644351692598,59.2024424,110.96,110.86,56.44359713]
[1644351693698,59.4524424,110.96,110.86,56.44359713]
[1644351694300,59.4524424,110.96,110.86,67.27359713]
[1644351694700,13.5259,110.98,110.87,1.5831064]
[1644351694902,2.10775549,111.0,110.89,13.5249]
[1644351695199,2.4024431,110.99,110.89,30.6049]
[1644351695403,6.20816664,111.02,110.9,1.28084353]
[1644351695598,48.0263903,111.01,110.91,45.79110813]
[1644351695799,42.13138633,110.99,110.91,46.04110813]
[1644351696199,55.65548633,110.99,110.91,45.79110813]
[1644351696399,2.40385011,110.98,110.88,24.3824]
[1644351697401,36.89529107,110.96,110.89,41.68272468]
[1644351698799,50.42349107,110.96,110.89,41.68272468]
[1644351699600,50.42349107,110.96,110.87,13.5269]
[1644351699900,50.42349107,110.96,110.86,45.5638]
[1644351700105,50.67349107,110.96,110.86,45.5638]
[1644351700602,50.67349107,110.96,110.87,38.02864036]
[1644351701206,50.67349107,110.96,110.87,38.27864036]
[1644351701408,50.67349107,110.96,110.87,49.26233624]
[1644351702110,50.67349107,110.96,110.87,49.01233624]
[1644351702710,50.67349107,110.96,110.87,53.08073624]
[1644351702908,37.14529107,110.96,110.87,53.08073624]
[1644351703109,0.25,110.96,110.87,59.08073624]
[1644351703311,18.04222449,111.02,110.87,59.08073624]
[1644351703516,2.40840639,111.01,110.88,65.02]
[1644351703712,48.87312354,111.05,110.91,0.30942306]
[1644351703911,15.92740066,111.04,110.93,13.5195]
[1644351704112,2.40850066,111.03,110.94,34.62295194]
[1644351704310,44.67201997,111.04,110.94,55.54695194]
[1644351704514,44.67201997,111.04,110.94,61.54695194]
[1644351704711,44.67201997,111.04,110.95,1.27469588]
[1644351704912,2.40761756,111.03,110.95,1.27469588]
[1644351705113,2.40761756,111.03,110.91,72.63759588]
[1644351705318,2.40761756,111.03,110.93,10.83]
[1644351705819,2.40761756,111.03,110.93,17.08]
[1644351706019,41.05457645,111.02,110.94,36.88599902]
[1644351706214,41.05457645,111.02,110.91,82.1929]
[1644351706616,41.05457645,111.02,110.91,88.4429]
[1644351707216,41.05457645,111.02,110.92,43.45189194]
[1644351707617,41.05457645,111.02,110.92,49.70189194]
[1644351707819,54.57567645,111.02,110.92,49.70189194]
[1644351708017,54.57567645,111.02,110.92,49.45189194]
[1644351708817,54.57567645,111.02,110.92,43.45189194]
[1644351709718,56.68343194,111.02,110.92,43.45189194]
[1644351710218,67.51343194,111.02,110.92,43.45189194]
[1644351710620,67.76343194,111.02,110.92,43.45189194]
[1644351711518,67.51343194,111.02,110.92,43.45189194]
[1644351712818,67.76343194,111.02,110.92,43.45189194]
[1644351714521,67.76343194,111.02,110.89,24.5958]
[1644351714720,158.36343194,111.02,110.89,24.5958]
[1644351715521,158.36343194,111.02,110.9,41.38539319]
[1644351716121,67.76343194,111.02,110.9,41.38539319]
[1644351720539,26.45885549,111.02,110.9,66.13819319]
[1644351720732,13.5211,111.02,110.9,73.41685969]
[1644351720929,13.5189,111.04,110.91,10.83]
[1644351721131,13.5189,111.04,110.91,6.0]
[1644351721330,13.5189,111.04,110.92,1.2786665]
[1644351721530,36.06092613,111.03,110.94,13.5182]
[1644351721738,36.06092613,111.03,110.95,36.44593657]
[1644351722132,13.5189,111.04,110.95,36.44593657]
[1644351722332,2.54040379,111.05,110.96,1.2786665]
[1644351722534,2.54040379,111.05,110.98,13.5148]
[1644351722736,3.80572354,111.08,110.98,22.7358]
[1644351722737,2.54040379,111.06,110.98,22.7358]
[1644351722934,2.54040379,111.07,110.99,1.2786665]
[1644351723134,48.72025682,111.07,110.99,46.92227563]
[1644351723537,42.65821922,111.05,110.99,46.92227563]
[1644351723735,42.65821922,111.05,110.99,60.43507563]
[1644351723934,42.65821922,111.05,110.99,59.15640913]
[1644351724135,42.90821922,111.05,110.99,45.64360913]
[1644351724536,2.54040379,111.07,110.99,45.64360913]
[1644351725136,2.54040379,111.07,110.99,59.15740913]
[1644351725436,2.54040379,111.08,110.99,59.15740913]
[1644351725636,46.01853099,111.07,110.99,59.15740913]
[1644351726040,46.01853099,111.07,110.99,59.40740913]
[1644351726236,46.26853099,111.07,110.99,59.15740913]
[1644351726751,46.26853099,111.07,110.99,59.40740913]
[1644351727754,59.78203099,111.07,110.99,59.40740913]
[1644351728156,59.78203099,111.07,110.99,59.15740913]
[1644351730559,13.5135,111.07,110.99,59.15740913]
[1644351730764,10.83,111.11,111.0,1.2786665]
[1644351730765,2.54040379,111.11,111.0,1.2786665]
[1644351730970,2.54040379,111.11,111.03,13.5081]
[1644351731158,2.54040379,111.11,111.03,38.4301]
[1644351731358,2.54040379,111.11,111.04,1.2786665]
[1644351731562,2.54040379,111.11,111.05,40.55390266]
[1644351731758,4.78553825,111.11,111.05,40.55390266]
[1644351731958,47.51211056,111.1,111.05,54.05990266]
[1644351732160,2.54040379,111.11,111.05,54.05990266]
[1644351732359,2.54040379,111.1,111.05,54.05990266]
[1644351733261,2.54040379,111.11,111.05,54.05990266]
[1644351733464,4.7841994,111.11,111.05,54.05990266]
[1644351733862,4.7841994,111.11,111.05,66.73556916]
[1644351734263,35.16733642,111.1,111.05,40.55390266]
[1644351734461,4.7841994,111.11,111.05,40.55390266]
[1644351734662,2.54040379,111.1,111.05,40.55390266]
[1644351735263,2.54040379,111.09,111.05,40.55390266]
[1644351735764,4.78458586,111.09,111.05,40.55390266]
[1644351735966,2.79040379,111.1,111.05,40.55390266]
[1644351737064,48.80772111,111.09,111.05,40.55390266]
[1644351737263,2.54040379,111.1,111.05,40.55390266]
[1644351737464,16.04890379,111.11,111.05,40.55390266]
[1644351737665,13.5085,111.11,111.05,40.55390266]
[1644351738266,47.50847062,111.1,111.05,40.55390266]
[1644351738865,47.75847062,111.1,111.05,40.55390266]
[1644351739065,47.75847062,111.1,111.03,13.5093]
[1644351739264,47.75847062,111.1,111.01,46.3038665]
[1644351739265,61.26827062,111.1,111.01,12.1086665]
[1644351739467,61.26827062,111.1,111.02,6.0]
[1644351739664,61.26827062,111.1,111.01,7.2786665]
[1644351739864,61.26827062,111.1,111.01,6.0]
[1644351740066,61.26827062,111.1,111.01,35.46366641]
[1644351740266,61.26827062,111.1,111.0,52.4675]
[1644351740566,63.37602611,111.1,111.0,52.4675]
[1644351740765,63.37602611,111.1,111.0,46.4675]
[1644351740965,63.37602611,111.1,110.97,10.83]
[1644351741167,63.37602611,111.1,110.98,37.27096406]
[1644351741764,63.37602611,111.1,110.98,50.78556406]
[1644351744268,63.37602611,111.1,110.98,51.03556406]
[1644351744469,63.37602611,111.1,110.98,52.31423056]
[1644351744470,61.01827062,111.1,110.98,52.31423056]
[1644351744670,61.01827062,111.1,110.99,10.83]
[1644351744869,13.5084,111.11,111.02,13.5097]
[1644351745069,47.4846,111.14,111.02,21.9197]
[1644351745270,47.4846,111.14,111.02,28.1697]
[1644351745473,47.4846,111.14,111.03,1.2786665]
[1644351745870,43.66220153,111.13,111.04,36.71459649]
[1644351746273,43.66220153,111.13,111.04,37.99326299]
[1644351746870,47.4846,111.14,111.06,37.71932753]
[1644351746871,47.74863206,111.11,111.06,37.71932753]
[1644351747071,47.74863206,111.11,111.06,47.43932753]
[1644351748072,13.5073,111.12,111.06,47.43932753]
[1644351748272,13.5073,111.12,111.06,9.72]
[1644351748475,13.5073,111.12,111.05,13.5066]
[1644351748973,13.7573,111.12,111.05,13.5066]
[1644351749173,39.78342512,111.11,111.05,13.5066]
[1644351749577,39.78342512,111.11,111.06,48.63277601]
[1644351749774,39.78342512,111.11,111.06,58.56977601]
[1644351750476,39.78342512,111.11,111.06,9.937]
[1644351750674,53.29222512,111.11,111.02,38.0697]
[1644351751078,53.29222512,111.11,111.02,24.6814]
[1644351751678,53.29222512,111.11,110.98,12.1086665]
[1644351751882,66.22998061,111.11,110.96,83.2239]
[1644351752081,66.22998061,111.11,110.96,112.6914]
[1644351752284,64.12222512,111.11,110.96,112.6914]
[1644351752483,64.12222512,111.11,110.97,57.62646171]
[1644351752682,64.12222512,111.11,110.97,85.25226171]
[1644351752683,53.54222512,111.11,110.97,85.25226171]
[1644351753306,53.54222512,111.11,110.98,1.2786665]
[1644351753509,53.54222512,111.11,110.99,34.2989964]
[1644351753706,53.54222512,111.11,110.99,47.8133964]
[1644351754110,12.98,111.1,110.98,24.1544]
[1644351754313,13.5159,111.07,110.98,30.1544]
[1644351754512,13.5159,111.07,110.98,24.1544]
[1644351754711,13.5159,111.07,110.99,1.2786665]
[1644351754908,13.5159,111.07,110.99,13.5138]
[1644351755113,41.74687402,111.06,110.98,71.05766415]
[1644351755311,13.5166,111.05,110.98,71.05766415]
[1644351755514,40.10477955,111.04,110.98,71.05766415]
[1644351755714,40.10477955,111.04,110.98,46.90326415]
[1644351756412,13.5166,111.05,110.98,46.90326415]
[1644351756610,45.0478,111.09,110.98,48.18193065]
[1644351756816,45.0478,111.09,110.98,48.43193065]
[1644351757015,12.98,111.1,110.98,48.43193065]
[1644351757215,12.98,111.1,110.98,48.18193065]
[1644351757418,46.71784759,111.09,110.98,48.18193065]
[1644351757612,60.22864759,111.09,110.98,80.67763065]
[1644351758612,60.22864759,111.09,110.98,80.92763065]
[1644351759322,60.22864759,111.09,110.98,94.16663065]
[1644351760114,60.47864759,111.09,110.98,94.16663065]
[1644351760514,60.47864759,111.09,110.98,93.91663065]
[1644351760718,60.47864759,111.09,110.98,94.16663065]
[1644351761214,60.47864759,111.09,110.98,93.91663065]
[1644351761417,60.47864759,111.09,110.98,80.67763065]
[1644351761616,60.47864759,111.09,110.98,73.39896415]
[1644351762421,60.47864759,111.09,110.99,1.2786665]
[1644351762818,60.47864759,111.09,110.99,13.5146]
[1644351764228,60.47864759,111.09,110.97,47.2287]
[1644351764429,60.47864759,111.09,110.98,13.5158]
[1644351764722,73.45864759,111.09,110.97,93.05661287]
[1644351765625,73.45864759,111.09,110.97,106.57371287]
[1644351765826,164.05864759,111.09,110.97,106.57371287]
[1644351766124,164.05864759,111.09,110.97,47.2287]
[1644351766331,166.60640308,111.09,110.92,14.2586665]
[1644351766530,28.50052808,111.08,110.92,14.2586665]
[1644351766828,13.5221,111.03,110.93,13.5221]
[1644351767030,42.54073273,111.02,110.94,43.30979402]
[1644351768126,42.79073273,111.02,110.94,43.30979402]
[1644351768727,13.5217,111.0,110.94,56.83079402]
[1644351768928,57.80593161,111.0,110.94,56.83079402]
[1644351769827,57.80593161,111.0,110.94,13.521]
[1644351770027,57.80593161,111.0,110.93,13.5213]
[1644351770828,57.80593161,111.0,110.94,35.27482972]
[1644351771928,13.5217,111.0,110.94,48.79502972]
[1644351772527,13.5189,111.01,110.94,50.07369622]
[1644351772730,45.063,111.04,110.94,59.90369622]
[1644351772931,41.56500899,111.03,110.94,59.90369622]
[1644351773728,13.5177,111.02,110.94,59.90369622]
[1644351773930,41.56500899,111.03,110.94,59.90369622]
[1644351774129,45.0548,111.06,110.94,78.88369622]
[1644351774330,50.93230379,111.09,110.94,155.87019622]
[1644351774528,50.93230379,111.09,110.95,24.9676]
[1644351774732,13.5141,111.05,110.99,13.5138]
[1644351775129,13.5141,111.05,111.0,40.8342357]
[1644351775336,39.11374559,111.04,111.0,40.8342357]
[1644351775731,39.11374559,111.04,110.99,13.5138]
[1644351776333,52.87894559,111.04,110.98,13.5155]
[1644351776734,52.62894559,111.04,110.98,13.5155]
[1644351776936,52.62894559,111.04,110.96,35.7765]
[1644351777232,52.62894559,111.04,110.96,12.98]
[1644351777437,52.62894559,111.04,110.95,38.4868]
[1644351777635,52.62894559,111.04,110.93,24.3281]
[1644351778034,52.87894559,111.04,110.93,45.48934759]
[1644351778433,52.87894559,111.04,110.91,48.9312665]
[1644351778634,65.85894559,111.04,110.91,48.9312665]
[1644351778835,65.85894559,111.04,110.92,13.5228]
[1644351779435,65.85894559,111.04,110.92,53.63487383]
[1644351779635,65.85894559,111.04,110.91,48.9312665]
[1644351779636,67.96670108,111.04,110.91,47.6526]
[1644351779837,90.6,111.03,110.91,47.6526]
[1644351780038,12.98,111.02,110.89,13.5505]
[1644351780238,13.5268,110.99,110.89,13.5505]
[1644351780737,40.6976421,110.98,110.9,48.82319758]
[1644351780939,51.4436421,110.98,110.88,2.55986375]
[1644351781146,66.53139759,110.98,110.88,2.83585225]
[1644351781340,13.5265,110.96,110.86,2.55986375]
[1644351781540,12.98,110.95,110.86,2.55986375]
[1644351781739,12.98,110.95,110.85,5.24270354]
[1644351781939,37.57795432,110.94,110.87,38.99225572]
[1644351782542,12.98,110.96,110.87,38.99225572]
[1644351782740,13.532,110.93,110.88,2.68163864]
[1644351783339,13.532,110.93,110.87,41.55211947]
[1644351783340,13.532,110.93,110.87,38.99225572]
[1644351783540,55.5020381,110.93,110.87,38.99225572]
[1644351783740,55.7520381,110.93,110.87,38.99225572]
[1644351783941,13.532,110.93,110.88,2.68055166]
[1644351785146,13.532,110.93,110.87,5.24041541]
[1644351785344,13.782,110.93,110.86,2.55986375]
[1644351785946,13.5347,110.91,110.86,2.55986375]
[1644351786144,43.76841174,110.9,110.86,2.55986375]
[1644351786544,43.76841174,110.9,110.85,5.24041541]
[1644351787782,13.5355,110.89,110.85,5.24041541]
[1644351787979,37.78473246,110.88,110.85,5.24041541]
[1644351788183,37.78473246,110.88,110.85,2.68055166]
[1644351788376,37.78473246,110.88,110.86,6.06439994]
[1644351788576,45.1181,110.9,110.86,6.06439994]
[1644351788780,13.5342,110.89,110.86,6.06439994]
[1644351790680,58.0459077,110.9,110.86,6.06439994]
[1644351792284,58.2959077,110.9,110.86,6.06439994]
[1644351792685,58.2959077,110.9,110.86,42.68435849]
[1644351792890,45.1057,110.94,110.86,42.68435849]
[1644351793088,23.2278,110.96,110.86,54.21035849]
[1644351793490,85.7474,110.98,110.86,54.21035849]
[1644351793689,59.4604,110.99,110.86,54.46035849]
[1644351793889,37.65183054,110.98,110.86,77.84225849]
[1644351794689,13.5271,110.95,110.86,91.37315849]
[1644351794893,45.99733553,110.94,110.86,91.37315849]
[1644351795291,45.99733553,110.94,110.86,31.12129994]
[1644351795494,45.99733553,110.94,110.86,7.34516985]
[1644351796390,59.77543553,110.94,110.86,6.06439994]
[1644351798393,59.77543553,110.94,110.87,34.53200916]
[1644351800595,13.5266,110.95,110.87,48.06180916]
[1644351800792,1.27995328,110.98,110.87,48.31180916]
[1644351800993,71.49105328,110.99,110.87,48.33580916]
[1644351801395,70.2111,110.99,110.87,48.33580916]
[1644351801592,1.27995328,111.0,110.87,97.93610916]
[1644351801794,1.27995328,111.0,110.88,67.17]
[1644351801994,1.27995328,111.0,110.91,13.5219]
[1644351802294,1.27995328,111.0,110.91,32.1019]
[1644351802594,1.27995328,111.0,110.92,47.40250183]
[1644351802794,1.27995328,111.0,110.92,47.65250183]
[1644351802996,1.27995328,111.0,110.93,1.2786665]
[1644351803298,45.20637782,111.01,110.94,36.57418462]
[1644351803695,45.20637782,111.01,110.94,50.09348462]
[1644351804096,43.92642454,111.01,110.94,50.09348462]
[1644351804296,43.92642454,111.01,110.93,1.2786665]
[1644351804496,45.20637782,111.01,110.91,1.2786665]
[1644351804896,45.20637782,111.01,110.89,25.0161]
[1644351805296,45.45637782,111.01,110.9,39.80015377]
[1644351805696,57.69612454,111.01,110.9,53.32565377]
[1644351806999,70.67612454,111.01,110.9,53.32565377]
[1644351808403,70.42612454,111.01,110.9,53.32565377]
[1644351808998,70.42612454,111.01,110.9,53.57565377]
[1644351809199,70.42612454,111.01,110.9,65.23165377]
[1644351809398,57.44612454,111.01,110.9,132.40165377]
[1644351809599,43.92642454,111.01,110.91,144.79]
[1644351809800,43.92642454,111.01,110.94,13.517]
[1644351809997,43.92642454,111.01,110.95,47.73487703]
[1644351810598,14.79745328,111.02,110.95,47.73487703]
[1644351810798,14.79605328,111.03,110.95,47.98487703]
[1644351811401,14.79605328,111.03,110.96,13.517]
[1644351811698,52.94264377,111.03,110.97,40.69722823]
[1644351812597,52.94264377,111.03,110.95,45.0516]
[1644351812798,52.94264377,111.03,110.93,45.0583]
[1644351813025,1.27995328,111.02,110.92,60.9035]
[1644351813198,13.5211,110.99,110.92,66.9035]
[1644351813600,42.63556844,110.98,110.93,39.03873952]
[1644351813998,42.63556844,110.98,110.93,13.5211]
[1644351814199,56.15756844,110.98,110.92,47.9235]
[1644351814598,56.15756844,110.98,110.9,24.1455]
[1644351814798,56.15756844,110.98,110.89,0.024]
[1644351814998,56.15756844,110.98,110.89,46.21115845]
[1644351815298,56.15756844,110.98,110.89,47.51592836]
[1644351815698,56.15756844,110.98,110.9,13.5248]
[1644351815899,56.15756844,110.98,110.89,47.51592836]
[1644351816298,56.15756844,110.98,110.89,46.21115845]
[1644351816503,56.15756844,110.98,110.89,1.30476991]
[1644351816701,56.15756844,110.98,110.89,1.28076991]
[1644351816901,56.40756844,110.98,110.89,1.28076991]
[1644351817700,69.38756844,110.98,110.89,1.28076991]
[1644351818602,69.38756844,110.98,110.89,43.85927548]
[1644351820203,69.38756844,110.98,110.89,44.10927548]
[1644351820402,56.40756844,110.98,110.89,43.85927548]
[1644351820804,56.40756844,110.98,110.89,57.38527548]
[1644351821007,56.40756844,110.98,110.89,56.10450557]
[1644351821207,56.40756844,110.98,110.89,56.12850557]
[1644351822207,56.40756844,110.98,110.89,56.37850557]
[1644351823007,56.15756844,110.98,110.89,56.37850557]
[1644351823212,13.5208,110.99,110.9,14.26391842]
[1644351823409,1.27995328,111.03,110.93,13.518]
[1644351823711,1.27995328,111.02,110.93,28.084]
[1644351823911,1.27995328,111.02,110.94,14.26391842]
[1644351824110,1.27995328,111.02,110.95,34.40253434]
[1644351824313,39.39339906,111.03,110.95,80.98555276]
[1644351824510,39.39339906,111.03,110.96,13.5148]
[1644351824710,39.39339906,111.03,110.96,15.04871842]
[1644351825110,39.64339906,111.03,110.96,15.04871842]
[1644351825310,53.15949906,111.03,110.96,13.5148]
[1644351825509,53.15949906,111.03,110.94,14.26391842]
[1644351825510,1.27995328,111.02,110.94,14.80511842]
[1644351825710,1.27995328,111.01,110.91,46.9197]
[1644351825909,1.27995328,111.0,110.91,46.9197]
[1644351826312,42.66841541,110.99,110.92,37.17848891]
[1644351826710,57.47176869,110.99,110.92,50.70088891]
[1644351826910,14.80335328,110.99,110.92,50.70088891]
[1644351827110,15.52040379,111.03,110.92,50.70088891]
[1644351827111,1.27995328,111.0,110.92,50.95088891]
[1644351827510,1.27995328,111.0,110.92,67.58888891]
[1644351827911,1.27995328,111.0,110.92,78.40888891]
[1644351829533,1.27995328,111.0,110.92,77.90888891]
[1644351829734,34.52198192,110.99,110.92,77.90888891]
[1644351829934,34.52198192,110.99,110.92,67.27088891]
[1644351830135,34.52198192,110.99,110.92,61.27088891]
[1644351830336,34.77198192,110.99,110.92,61.27088891]
[1644351830534,34.77198192,110.99,110.92,61.02088891]
[1644351830734,34.77198192,110.99,110.92,13.5224]
[1644351830937,36.0519352,110.99,110.92,13.5224]
[1644351831137,49.5726352,110.99,110.92,13.5224]
[1644351831734,49.5726352,110.99,110.92,58.51843182]
[1644351832136,48.29268192,110.99,110.92,58.51843182]
[1644351832836,48.29268192,110.99,110.89,12.10076991]
[1644351833034,48.29268192,110.99,110.88,1.30476991]
[1644351833035,60.0806352,110.99,110.88,1.30476991]
[1644351833234,60.0806352,110.99,110.89,0.024]
[1644351833235,62.18839069,110.99,110.89,0.024]
[1644351833835,62.18839069,110.99,110.89,43.82711983]
[1644351834037,60.90843741,110.99,110.89,45.10788974]
[1644351834235,50.40043741,110.99,110.89,45.08388974]
[1644351834437,50.40043741,110.99,110.9,1.28076991]
[1644351834637,48.29268192,110.99,110.9,1.28076991]
[1644351835238,48.29268192,110.99,110.91,1.28076991]
[1644351836036,10.82,110.98,110.91,1.28076991]
[1644351836239,13.5291,110.96,110.9,1.28076991]
[1644351836442,36.43617827,110.95,110.9,1.28076991]
[1644351837238,13.5288,110.94,110.9,1.28076991]
[1644351837437,46.70889607,110.93,110.89,1.28076991]
[1644351838439,60.23699607,110.93,110.88,14.80896991]
[1644351839344,45.0866,110.98,110.89,39.55868106]
[1644351839539,13.5243,110.96,110.91,13.5243]
[1644351839739,1.27995328,111.0,110.91,13.5243]
[1644351840139,39.03318455,110.99,110.91,52.70083282]
[1644351840542,39.28318455,110.99,110.91,52.70083282]
[1644351840940,13.5222,110.98,110.91,52.70083282]
[1644351841348,1.27995328,111.01,110.91,107.14083282]
[1644351841553,1.27995328,111.01,110.92,144.79]
[1644351841741,1.27995328,111.03,110.94,13.5169]
[1644351841943,1.27995328,111.03,110.94,32.0879]
[1644351842141,14.79575328,111.03,110.94,38.3379]
[1644351842341,35.7799013,111.02,110.94,63.17858681]
[1644351842841,36.0299013,111.02,110.94,61.88969601]
[1644351843045,36.0299013,111.02,110.94,63.17858681]
[1644351843543,13.5199,111.01,110.94,13.5169]
[1644351844545,38.20617589,111.0,110.94,13.5169]
[1644351844844,47.28546163,110.98,110.94,13.5169]
[1644351845645,46.35005328,111.02,110.94,13.5169]
[1644351845848,1.27995328,111.02,110.94,13.7669]
[1644351846248,1.27995328,111.02,110.94,15.0557908]
[1644351846449,1.27995328,111.03,110.94,15.0557908]
[1644351846648,40.21374847,111.02,110.95,44.33590846]
[1644351846846,40.21374847,111.02,110.97,13.5175]
[1644351847051,40.21374847,111.02,110.97,57.1136968]
[1644351847248,39.71374847,111.02,110.97,57.1136968]
[1644351847649,1.32561898,111.04,110.97,57.1136968]
[1644351847851,1.27995328,111.04,110.97,69.9735876]
[1644351848058,1.27995328,111.04,110.97,75.9735876]
[1644351848850,43.2918654,111.04,110.97,75.9735876]
[1644351849051,43.5418654,111.04,110.97,75.9735876]
[1644351849451,43.5418654,111.04,110.97,69.9735876]
[1644351849653,43.5418654,111.04,110.97,58.6525876]
[1644351850453,43.5418654,111.04,110.97,69.2305876]
[1644351850852,43.2918654,111.04,110.97,69.2305876]
[1644351851254,43.2918654,111.04,110.97,25.6343908]
[1644351851456,56.8070654,111.04,110.97,13.5175]
[1644351851654,1.27995328,111.03,110.97,13.5175]
[1644351852155,1.27995328,111.02,110.97,13.5175]
[1644351852353,46.15227437,111.02,110.97,58.14298727]
[1644351852752,46.15227437,111.02,110.97,13.5175]
[1644351853753,59.66907437,111.02,110.97,13.5175]
[1644351854455,59.66907437,111.02,110.98,47.60755365]
[1644351854657,1.27995328,111.02,110.98,61.12345365]
[1644351855058,1.27995328,111.03,110.98,61.12345365]
[1644351855256,1.27995328,111.03,110.98,13.5159]
[1644351856255,47.59208145,111.03,110.98,50.76551994]
[1644351856456,47.59208145,111.03,110.98,13.5159]
[1644351856658,61.10758145,111.03,110.97,13.5179]
[1644351856856,61.10758145,111.03,110.95,47.9527]
[1644351857059,63.21533694,111.03,110.91,1.28076991]
[1644351857360,63.21533694,111.03,110.9,47.167]
[1644351857361,1.27995328,111.01,110.9,47.167]
[1644351857557,37.26715687,111.01,110.91,42.44471696]
[1644351858757,13.5242,110.99,110.91,13.5242]
[1644351859758,45.10222501,110.98,110.91,59.96355754]
[1644351859960,58.62442501,110.98,110.91,60.21355754]
[1644351860961,45.10222501,110.98,110.92,1.28580362]
[1644351861160,1.27995328,111.0,110.94,13.5201]
[1644351861960,1.27995328,111.01,110.94,13.5201]
[1644351862161,41.84827424,111.0,110.94,47.90138715]
[1644351862463,55.36777424,111.0,110.94,47.90138715]
[1644351863562,54.33782096,111.0,110.94,13.5201]
[1644351865263,54.33782096,111.0,110.95,40.23627658]
[1644351865461,54.33782096,111.0,110.96,13.5186]
[1644351865661,40.81832096,111.0,110.96,13.5186]
[1644351866060,40.56832096,111.0,110.96,13.5186]
[1644351866459,13.5182,111.01,110.96,13.5186]
[1644351866662,13.5171,111.02,110.96,13.7686]
[1644351867062,0.0456657,111.04,110.96,13.7686]
[1644351867260,46.33755328,111.05,110.96,13.7686]
[1644351867461,46.64789442,111.04,110.98,13.5157]
[1644351868760,13.516,111.03,110.98,13.5157]
[1644351869163,37.26170519,111.02,110.95,45.0544]
[1644351869370,37.26170519,111.02,110.94,24.7739]
[1644351869564,37.51170519,111.02,110.94,24.7739]
[1644351870366,37.51170519,111.02,110.94,72.69066116]
[1644351870763,51.02930519,111.02,110.95,13.5197]
[1644351872971,51.02930519,111.02,110.96,54.19927986]
[1644351873567,51.02930519,111.02,110.96,13.5185]
[1644351875572,51.02930519,111.02,110.96,51.0509694]
[1644351877190,51.02930519,111.02,110.96,13.5185]
[1644351877794,51.02930519,111.02,110.95,13.5197]
[1644351877993,51.02930519,111.02,110.94,24.7739]
[1644351878794,51.02930519,111.02,110.93,13.7363]
[1644351879395,51.02930519,111.02,110.92,13.5471]
[1644351879695,13.526,110.99,110.92,0.024]
[1644351879892,36.66355223,110.98,110.9,1.28076991]
[1644351880695,36.66355223,110.98,110.89,1.30476991]
[1644351880896,36.66355223,110.98,110.9,0.024]